fUSD/lending_fUSD_20250423
["ID","MTS","AMOUNT","RATE_DAILY","PERIOD"]
[358697463,1745384278280,168.03,0.00032877,30]
[358697464,1745384307625,175.16116295,0.00046653,30]
[358697465,1745384309973,193.596,0.00038256,51]
[358697467,1745384638519,242.0,0.00043,90]
[358697468,1745384638870,242.0,0.00043014,90]
[358697469,1745384666593,194.01,0.00038361,30]
[358697471,1745384692740,3002170.55003564,0.00043836,30]
[358697472,1745384726292,500.0,0.00046585,120]
[358697473,1745384726535,500.0,0.00046585,120]
[358697474,1745384726789,500.0,0.00046585,120]
[358697475,1745384727026,500.0,0.00046585,120]
[358697476,1745384771546,500.0,0.00046585,120]
[358697477,1745384771787,500.0,0.00046585,120]
[358697478,1745384772046,500.0,0.00046585,120]
[358697479,1745384772341,500.0,0.00046585,120]
[358697480,1745384783660,1500.0,0.00039539,120]
[358697481,1745384895420,500.0,0.000438,30]
[358697482,1745384911918,500.0,0.0004381,30]
[358697483,1745384923687,500.0,0.0004382,30]
[358697485,1745384930124,500.0,0.00043822,30]
[358697504,1745385032518,-495.0,0.0002,2]
[358697505,1745385032528,-250.0,0.00021,2]
[358697507,1745385032538,-300.0,0.00023,2]
[358697509,1745385032547,-156.796252,0.000249,7]
[358697510,1745385032557,-151.0,0.000249,7]
[358697511,1745385032566,-163.503955,0.000249,7]
[358697513,1745385032576,-246.262243,0.000249,7]
[358697515,1745385032586,-246.262243,0.000249,7]
[358697517,1745385032595,-350.0,0.00025,2]
[358697519,1745385032605,-250.62962809,0.00026427,2]
[358697521,1745385032614,-400.0,0.00027,2]
[358697523,1745385032624,-578.73100645,0.00027945,2]
[358697579,1745385038234,-1583.88899355,0.00027945,2]
[358697580,1745385038244,-450.0,0.00029,2]
[358697581,1745385038254,-315.2096901,0.000299,8]
[358697582,1745385038266,-500.0,0.0003,2]
[358697583,1745385038276,-500.0,0.00030521,2]
[358697584,1745385038286,-315.2096901,0.00030969,9]
[358697585,1745385038295,-500.0,0.00031,2]
[358697586,1745385038305,-315.2096901,0.00032038,10]
[358697587,1745385038316,-550.0,0.00033,2]
[358697588,1745385038325,-315.2096901,0.00033107,11]
[358697589,1745385038334,-248.223,0.00033327,2]
[358697590,1745385038345,-153.739,0.00033327,2]
[358697591,1745385038355,-917.0,0.00033327,2]
[358697592,1745385038364,-796.0,0.00033327,2]
[358697593,1745385038374,-1290.90762629,0.00033327,2]
[358697594,1745385038390,-147.09237371,0.00033327,2]
[358697595,1745385038399,-935.0705676,0.00033327,2]
[358697596,1745385038449,-349.9294324,0.00033327,2]
[358697597,1745385038458,-876.0,0.00033327,2]
[358697598,1745385038468,-973.278,0.00033327,2]
[358697599,1745385038478,-3984.0,0.00033327,2]
[358697600,1745385038488,-246.262243,0.00033552,7]
[358697601,1745385038498,-246.262243,0.00033552,7]
[358697602,1745385038507,-530.0,0.00033808,2]
[358697603,1745385038518,-315.2096901,0.00034176,11]
[358697604,1745385038528,-600.0,0.00035,2]
[358697605,1745385038539,-500.0,0.00035,2]
[358697606,1745385038549,-151.0,0.00035068,7]
[358697607,1745385038560,-315.2096901,0.00035245,12]
[358697608,1745385038572,-151.0,0.0003593,7]
[358697609,1745385038583,-246.262243,0.0003593,7]
[358697610,1745385038596,-246.262243,0.0003593,7]
[358697611,1745385038616,-315.2096901,0.00036314,13]
[358697612,1745385038628,-150.0,0.00036327,2]
[358697613,1745385038638,-796.0,0.00036327,2]
[358697614,1745385038648,-356.247,0.00036327,2]
[358697615,1745385038658,-876.0,0.00036327,2]
[358697616,1745385038668,-3984.0,0.00036327,2]
[358697617,1745385038678,-1704.97,0.0003649,2]
[358697618,1745385038687,-650.0,0.00037,2]
[358697619,1745385038697,-315.2096901,0.00037383,13]
[358697620,1745385038707,-1000.0,0.00037457,2]
[358697621,1745385038716,-421.22,0.00037457,2]
[358697622,1745385038726,-338.01182594,0.000375,2]
[358697623,1745385038736,-566.27996434,0.0003753,2]
[358697697,1745385040779,-1211.174,0.00033327,2]
[358697699,1745385040789,-1219.25207861,0.0003753,2]
[358697762,1745385041356,13618.13,0.00030137,120]
[358697926,1745385043605,-253.17665933,0.0003753,2]
[358697927,1745385045284,654.06,0.00046582,30]
[358697928,1745385045543,654.06,0.00046582,30]
[358697929,1745385045800,654.06,0.00046582,30]
[358697931,1745385046026,654.06,0.00046582,30]
[358697932,1745385046103,-349.22995127,0.0003753,2]
[358697933,1745385046301,654.06,0.00046582,30]
[358697934,1745385046341,-243.86134645,0.0003753,2]
[358697935,1745385046354,-6569.65,0.00037676,2]
[358697936,1745385046365,-1596.11,0.00037799,2]
[358697937,1745385046376,-23900.0,0.00037874,2]
[358697938,1745385046386,-198.23,0.00037967,2]
[358697939,1745385046397,-250.0,0.0003798,2]
[358697940,1745385046408,-200.0,0.00038304,2]
[358697941,1745385046417,-315.2096901,0.00038452,14]
[358697942,1745385046427,-200.0,0.00038664,2]
[358697943,1745385046436,-500.0,0.00038675,7]
[358697944,1745385046448,-1704.97,0.00038754,2]
[358697945,1745385046458,-153.66,0.00038756,2]
[358697946,1745385046468,-1000.0,0.00038831,2]
[358697947,1745385046478,-700.0,0.00039,2]
[358697948,1745385046488,-305.48,0.00039,2]
[358697950,1745385046498,-150.0,0.00039327,2]
[358697951,1745385046508,-782.001,0.00039327,2]
[358697952,1745385046517,-876.0,0.00039327,2]
[358697953,1745385046529,-3984.0,0.00039327,2]
[358697954,1745385046539,-315.2096901,0.00039521,15]
[358697955,1745385046548,-246.262243,0.00039726,14]
[358697956,1745385046557,-246.262243,0.00039726,14]
[358697957,1745385046567,-166.66,0.00039807,2]
[358697958,1745385046576,-151.0,0.0004,14]
[358697959,1745385046586,-247.81066593,0.00040104,23]
[358697960,1745385046595,-208.8,0.00040277,2]
[358697961,1745385046605,-315.2096901,0.0004059,15]
[358697962,1745385046614,-750.0,0.00041,2]
[358697963,1745385046623,-152.0,0.00041013,3]
[358697964,1745385046633,-1704.97,0.00041018,2]
[358697965,1745385046642,-246.262243,0.00041095,14]
[358697966,1745385046651,-246.262243,0.00041095,14]
[358697967,1745385046661,-150.0,0.00041096,2]
[358697968,1745385046670,-150.0,0.00041096,2]
[358697969,1745385046680,-166.66,0.00041121,2]
[358697970,1745385046689,-154.45718083,0.0004137,2]
[358697971,1745385046699,-150.0,0.0004137,2]
[358697972,1745385046708,-150.0,0.00041644,2]
[358697973,1745385046718,-208.8,0.00041647,2]
[358697974,1745385046727,-315.2096901,0.00041659,16]
[358697975,1745385046737,-172.71161659,0.00041918,2]
[358697976,1745385046747,-1393.8018,0.00042227,2]
[358697977,1745385046757,-288.726,0.00042327,2]
[358697978,1745385046766,-2379.095,0.00042327,2]
[358697979,1745385046779,-166.66,0.00042435,2]
[358697980,1745385046788,-2380.5053056,0.00042654,4]
[358697981,1745385046797,-315.2096901,0.00042728,17]
[358697982,1745385046806,-151.0,0.00042837,14]
[358697983,1745385046816,-800.0,0.00043,2]
[358697984,1745385046827,-500.0,0.00043068,2]
[358697985,1745385046837,-1704.97,0.00043282,2]
[358697986,1745385046847,-286.88531994,0.00043288,2]
[358697987,1745385046856,-1000.0,0.00043685,2]
[358697988,1745385046866,-166.66,0.00043749,2]
[358697989,1745385046876,-315.2096901,0.00043797,18]
[358697990,1745385046885,-362.54358539,0.00043836,2]
[358697991,1745385046895,-4285.0,0.00043836,30]
[358697992,1745385046904,-151.0,0.00043836,14]
[358697993,1745385046913,-246.262243,0.00043836,14]
[358697994,1745385046923,-246.262243,0.00043836,14]
[358697995,1745385046932,-150.0,0.00043836,7]
[358697996,1745385046942,-150.0,0.00043836,7]
[358697997,1745385046951,-151.0,0.00043848,14]
[358697998,1745385046960,-246.262243,0.00043848,14]
[358697999,1745385046971,-246.262243,0.00043848,14]
[358698000,1745385046981,-151.0,0.00044,14]
[358698001,1745385046991,-246.262243,0.00044,14]
[358698002,1745385047001,-246.262243,0.00044,14]
[358698003,1745385047011,-152.0,0.00044073,4]
[358698004,1745385047021,-150.0,0.0004411,7]
[358698005,1745385047036,-150.0,0.0004411,7]
[358698006,1745385047046,-191.0,0.00044384,7]
[358698007,1745385047055,-150.0,0.00044384,7]
[358698008,1745385047065,-12452.03330011,0.000445,2]
[358698009,1745385047075,-255.91843246,0.00044658,7]
[358698010,1745385047085,-4621.9621,0.000448,10]
[358698011,1745385047096,-17306.494,0.000448,2]
[358698012,1745385047105,-5000.0,0.000448,120]
[358698013,1745385047115,-315.2096901,0.00044866,18]
[358698014,1745385047125,-169.46531154,0.00044873,7]
[358698015,1745385047135,-242.0,0.00044877,90]
[358698016,1745385047144,-53230.006574,0.0004489,3]
[358698017,1745385047154,-106460.013148,0.00044891,3]
[358698018,1745385047163,-16246.2706861,0.00044891,3]
[358698019,1745385047173,-151.0,0.00044895,2]
[358698020,1745385047183,-151.0,0.00044896,14]
[358698021,1745385047192,-246.262243,0.00044896,14]
[358698022,1745385047203,-246.262243,0.00044896,14]
[358698023,1745385047213,-151.0,0.00044898,2]
[358698024,1745385047223,-514.8301393,0.00044899,2]
[358698025,1745385047234,-772.0,0.000449,7]
[358698026,1745385047246,-151.0,0.000449,14]
[358698027,1745385047255,-152.098325,0.000449,14]
[358698028,1745385047265,-171.0,0.000449,14]
[358698029,1745385047282,-151.602616,0.000449,14]
[358698030,1745385047291,-151.602616,0.000449,14]
[358698031,1745385047301,-206.454831,0.000449,14]
[358698032,1745385047310,-206.454831,0.000449,14]
[358698033,1745385047319,-421.595129,0.000449,14]
[358698034,1745385047328,-421.595124,0.000449,14]
[358698035,1745385047338,-151.0,0.000449,14]
[358698036,1745385047348,-200.0,0.000449,7]
[358698037,1745385047359,-246.262243,0.000449,14]
[358698038,1745385047369,-246.262246,0.000449,14]
[358698039,1745385047379,-500.0,0.00044901,120]
[358698040,1745385047389,-500.0,0.00044901,120]
[358698041,1745385047400,-500.0,0.00044901,120]
[358698042,1745385047409,-500.0,0.00044901,120]
[358698043,1745385047418,-500.0,0.00044901,120]
[358698044,1745385047428,-500.0,0.00044901,120]
[358698045,1745385047437,-500.0,0.00044901,120]
[358698046,1745385047447,-500.0,0.00044901,120]
[358698047,1745385047456,-500.0,0.00044901,120]
[358698048,1745385047466,-500.0,0.00044901,120]
[358698049,1745385047475,-500.0,0.00044901,120]
[358698050,1745385047484,-500.0,0.00044901,120]
[358698051,1745385047494,-500.0,0.00044901,120]
[358698052,1745385047503,-500.0,0.00044901,120]
[358698053,1745385047512,-500.0,0.00044901,120]
[358698054,1745385047521,-500.0,0.00044901,120]
[358698055,1745385047532,-500.0,0.00044901,120]
[358698056,1745385047541,-500.0,0.00044901,120]
[358698057,1745385047551,-500.0,0.00044901,120]
[358698058,1745385047560,-500.0,0.00044901,120]
[358698059,1745385047569,-500.0,0.00044901,120]
[358698060,1745385047579,-500.0,0.00044901,120]
[358698061,1745385047588,-500.0,0.00044901,120]
[358698062,1745385047597,-500.0,0.00044901,120]
[358698063,1745385047607,-500.0,0.00044901,120]
[358698064,1745385047619,-500.0,0.00044901,120]
[358698065,1745385047630,-500.0,0.00044901,120]
[358698066,1745385047639,-500.0,0.00044901,120]
[358698067,1745385047649,-500.0,0.00044901,120]
[358698068,1745385047659,-500.0,0.00044901,120]
[358698069,1745385047668,-500.0,0.00044901,120]
[358698070,1745385047679,-500.0,0.00044901,120]
[358698071,1745385047688,-500.0,0.00044901,120]
[358698072,1745385047697,-500.0,0.00044901,120]
[358698073,1745385047707,-500.0,0.00044901,120]
[358698074,1745385047716,-500.0,0.00044901,120]
[358698075,1745385047726,-500.0,0.00044901,120]
[358698076,1745385047736,-500.0,0.00044901,120]
[358698077,1745385047746,-500.0,0.00044901,120]
[358698078,1745385047756,-500.0,0.00044901,120]
[358698079,1745385047765,-500.0,0.00044901,120]
[358698080,1745385047776,-500.0,0.00044901,120]
[358698081,1745385047789,-500.0,0.00044901,120]
[358698082,1745385047805,-500.0,0.00044901,120]
[358698083,1745385047815,-500.0,0.00044901,120]
[358698084,1745385047825,-500.0,0.00044901,120]
[358698085,1745385047834,-500.0,0.00044901,120]
[358698086,1745385047845,-500.0,0.00044901,120]
[358698087,1745385047855,-500.0,0.00044901,120]
[358698088,1745385047864,-500.0,0.00044901,120]
[358698089,1745385047874,-500.0,0.00044901,120]
[358698090,1745385047884,-500.0,0.00044901,120]
[358698091,1745385047894,-500.0,0.00044901,120]
[358698092,1745385047903,-500.0,0.00044901,120]
[358698093,1745385047913,-500.0,0.00044901,120]
[358698094,1745385047923,-500.0,0.00044901,120]
[358698095,1745385047934,-500.0,0.00044901,120]
[358698096,1745385047944,-500.0,0.00044901,120]
[358698097,1745385047954,-500.0,0.00044901,120]
[358698098,1745385047964,-500.0,0.00044901,120]
[358698099,1745385047974,-500.0,0.00044901,120]
[358698100,1745385047983,-500.0,0.00044901,120]
[358698101,1745385047993,-500.0,0.00044901,120]
[358698102,1745385048003,-500.0,0.00044901,120]
[358698103,1745385048012,-583.0,0.00044901,120]
[358698104,1745385048022,-500.0,0.00044901,120]
[358698105,1745385048034,-500.0,0.00044901,120]
[358698106,1745385048043,-500.0,0.00044901,120]
[358698107,1745385048053,-500.0,0.00044901,120]
[358698108,1745385048063,-500.0,0.00044901,120]
[358698109,1745385048072,-500.0,0.00044901,120]
[358698110,1745385048082,-500.0,0.00044901,120]
[358698111,1745385048092,-500.0,0.00044901,120]
[358698112,1745385048102,-500.0,0.00044901,120]
[358698113,1745385048112,-500.0,0.00044901,120]
[358698114,1745385048122,-500.0,0.00044901,120]
[358698115,1745385048131,-500.0,0.00044901,120]
[358698116,1745385048141,-500.0,0.00044901,120]
[358698117,1745385048150,-500.0,0.00044901,120]
[358698118,1745385048159,-500.0,0.00044901,120]
[358698119,1745385048169,-500.0,0.00044901,120]
[358698120,1745385048179,-500.0,0.00044901,120]
[358698121,1745385048188,-500.0,0.00044901,120]
[358698122,1745385048198,-500.0,0.00044901,120]
[358698123,1745385048207,-500.0,0.00044901,120]
[358698124,1745385048218,-500.0,0.00044901,120]
[358698125,1745385048228,-500.0,0.00044901,120]
[358698126,1745385048237,-500.0,0.00044901,120]
[358698127,1745385048247,-500.0,0.00044901,120]
[358698128,1745385048257,-500.0,0.00044901,120]
[358698129,1745385048268,-500.0,0.00044901,120]
[358698130,1745385048281,-500.0,0.00044901,120]
[358698131,1745385048292,-500.0,0.00044901,120]
[358698132,1745385048305,-500.0,0.00044901,120]
[358698133,1745385048317,-500.0,0.00044901,120]
[358698134,1745385048327,-500.0,0.00044901,120]
[358698135,1745385048336,-500.0,0.00044901,120]
[358698136,1745385048348,-500.0,0.00044901,120]
[358698137,1745385048360,-500.0,0.00044901,120]
[358698138,1745385048371,-500.0,0.00044901,120]
[358698139,1745385048382,-500.0,0.00044901,120]
[358698140,1745385048392,-500.0,0.00044901,120]
[358698141,1745385048402,-500.0,0.00044901,120]
[358698142,1745385048412,-500.0,0.00044901,120]
[358698143,1745385048423,-500.0,0.00044901,120]
[358698144,1745385048433,-500.0,0.00044901,120]
[358698145,1745385048443,-500.0,0.00044901,120]
[358698146,1745385048454,-500.0,0.00044901,120]
[358698147,1745385048464,-500.0,0.00044901,120]
[358698148,1745385048474,-500.0,0.00044901,120]
[358698149,1745385048484,-500.0,0.00044901,120]
[358698150,1745385048494,-500.0,0.00044901,120]
[358698151,1745385048504,-500.0,0.00044901,120]
[358698152,1745385048514,-500.0,0.00044901,120]
[358698153,1745385048524,-500.0,0.00044901,120]
[358698154,1745385048537,-500.0,0.00044901,120]
[358698155,1745385048547,-500.0,0.00044901,120]
[358698156,1745385048557,-500.0,0.00044901,120]
[358698157,1745385048567,-500.0,0.00044901,120]
[358698158,1745385048577,-500.0,0.00044901,120]
[358698159,1745385048587,-500.0,0.00044901,120]
[358698160,1745385048596,-500.0,0.00044901,120]
[358698161,1745385048606,-500.0,0.00044901,120]
[358698162,1745385048616,-500.0,0.00044901,120]
[358698163,1745385048626,-500.0,0.00044901,120]
[358698164,1745385048636,-500.0,0.00044901,120]
[358698165,1745385048646,-500.0,0.00044901,120]
[358698166,1745385048656,-500.0,0.00044901,120]
[358698167,1745385048665,-500.0,0.00044901,120]
[358698168,1745385048675,-500.0,0.00044901,120]
[358698169,1745385048685,-500.0,0.00044901,120]
[358698170,1745385048695,-500.0,0.00044901,120]
[358698171,1745385048705,-500.0,0.00044901,120]
[358698172,1745385048715,-783.0,0.00044901,120]
[358698173,1745385048725,-500.0,0.00044901,120]
[358698174,1745385048734,-500.0,0.00044901,120]
[358698175,1745385048744,-500.0,0.00044901,120]
[358698176,1745385048753,-500.0,0.00044901,120]
[358698177,1745385048763,-500.0,0.00044901,120]
[358698178,1745385048773,-500.0,0.00044901,120]
[358698179,1745385048784,-500.0,0.00044901,120]
[358698180,1745385048794,-500.0,0.00044901,120]
[358698181,1745385048803,-500.0,0.00044901,120]
[358698182,1745385048814,-500.0,0.00044901,120]
[358698183,1745385048823,-500.0,0.00044901,120]
[358698184,1745385048833,-500.0,0.00044901,120]
[358698185,1745385048842,-500.0,0.00044901,120]
[358698186,1745385048852,-500.0,0.00044901,120]
[358698187,1745385048862,-500.0,0.00044901,120]
[358698188,1745385048871,-500.0,0.00044901,120]
[358698189,1745385048881,-500.0,0.00044901,120]
[358698190,1745385048891,-500.0,0.00044901,120]
[358698191,1745385048902,-500.0,0.00044901,120]
[358698192,1745385048912,-500.0,0.00044901,120]
[358698193,1745385048922,-500.0,0.00044901,120]
[358698194,1745385048932,-500.0,0.00044901,120]
[358698195,1745385048941,-500.0,0.00044901,120]
[358698196,1745385048952,-500.0,0.00044901,120]
[358698197,1745385048961,-500.0,0.00044901,120]
[358698198,1745385048971,-500.0,0.00044901,120]
[358698199,1745385048982,-500.0,0.00044901,120]
[358698200,1745385048991,-500.0,0.00044901,120]
[358698201,1745385049001,-500.0,0.00044901,120]
[358698202,1745385049010,-500.0,0.00044901,120]
[358698203,1745385049020,-500.0,0.00044901,120]
[358698204,1745385049031,-500.0,0.00044901,120]
[358698205,1745385049041,-500.0,0.00044901,120]
[358698206,1745385049050,-500.0,0.00044901,120]
[358698207,1745385049060,-500.0,0.00044901,120]
[358698208,1745385049070,-500.0,0.00044901,120]
[358698209,1745385049080,-500.0,0.00044901,120]
[358698210,1745385049089,-500.0,0.00044901,120]
[358698211,1745385049099,-500.0,0.00044901,120]
[358698212,1745385049109,-500.0,0.00044901,120]
[358698213,1745385049119,-500.0,0.00044901,120]
[358698214,1745385049128,-500.0,0.00044901,120]
[358698215,1745385049138,-500.0,0.00044901,120]
[358698216,1745385049147,-500.0,0.00044901,120]
[358698217,1745385049320,-500.0,0.00044901,120]
[358698218,1745385049373,-500.0,0.00044901,120]
[358698219,1745385049384,-500.0,0.00044901,120]
[358698220,1745385049394,-500.0,0.00044901,120]
[358698221,1745385049404,-500.0,0.00044901,120]
[358698222,1745385049415,-500.0,0.00044901,120]
[358698223,1745385049424,-500.0,0.00044901,120]
[358698224,1745385049435,-500.0,0.00044901,120]
[358698225,1745385049446,-500.0,0.00044901,120]
[358698226,1745385049457,-966.0,0.00044901,120]
[358698227,1745385049467,-500.0,0.00044901,120]
[358698228,1745385049477,-500.0,0.00044901,120]
[358698229,1745385049487,-500.0,0.00044901,120]
[358698230,1745385049498,-500.0,0.00044901,120]
[358698231,1745385049509,-500.0,0.00044901,120]
[358698232,1745385049521,-500.0,0.00044901,120]
[358698233,1745385049534,-500.0,0.00044901,120]
[358698234,1745385049544,-500.0,0.00044901,120]
[358698235,1745385049554,-500.0,0.00044901,120]
[358698236,1745385049564,-500.0,0.00044901,120]
[358698237,1745385049574,-500.0,0.00044901,120]
[358698238,1745385049583,-500.0,0.00044901,120]
[358698239,1745385049592,-500.0,0.00044901,120]
[358698240,1745385049602,-500.0,0.00044901,120]
[358698241,1745385049612,-500.0,0.00044901,120]
[358698242,1745385049621,-500.0,0.00044901,120]
[358698243,1745385049631,-500.0,0.00044901,120]
[358698244,1745385049641,-500.0,0.00044901,120]
[358698245,1745385049650,-500.0,0.00044901,120]
[358698246,1745385049661,-500.0,0.00044901,120]
[358698247,1745385049672,-500.0,0.00044901,120]
[358698248,1745385049681,-500.0,0.00044901,120]
[358698249,1745385049691,-500.0,0.00044901,120]
[358698250,1745385049702,-500.0,0.00044901,120]
[358698251,1745385049713,-500.0,0.00044901,120]
[358698252,1745385049723,-500.0,0.00044901,120]
[358698253,1745385049733,-500.0,0.00044901,120]
[358698254,1745385049742,-500.0,0.00044901,120]
[358698255,1745385049752,-500.0,0.00044901,120]
[358698256,1745385049762,-500.0,0.00044901,120]
[358698257,1745385049774,-500.0,0.00044901,120]
[358698258,1745385049786,-500.0,0.00044901,120]
[358698259,1745385049796,-500.0,0.00044901,120]
[358698260,1745385049805,-500.0,0.00044901,120]
[358698261,1745385049815,-500.0,0.00044901,120]
[358698262,1745385049824,-500.0,0.00044901,120]
[358698263,1745385049834,-500.0,0.00044901,120]
[358698264,1745385049844,-500.0,0.00044901,120]
[358698265,1745385049854,-500.0,0.00044901,120]
[358698266,1745385049864,-500.0,0.00044901,120]
[358698267,1745385049874,-500.0,0.00044901,120]
[358698268,1745385049883,-500.0,0.00044901,120]
[358698269,1745385049893,-500.0,0.00044901,120]
[358698270,1745385049902,-500.0,0.00044901,120]
[358698271,1745385049912,-500.0,0.00044901,120]
[358698272,1745385049921,-500.0,0.00044901,120]
[358698273,1745385049931,-500.0,0.00044901,120]
[358698274,1745385049940,-500.0,0.00044901,120]
[358698275,1745385049949,-500.0,0.00044901,120]
[358698276,1745385049959,-500.0,0.00044901,120]
[358698277,1745385049969,-500.0,0.00044901,120]
[358698278,1745385049979,-500.0,0.00044901,120]
[358698279,1745385049988,-500.0,0.00044901,120]
[358698280,1745385049997,-500.0,0.00044901,120]
[358698281,1745385050007,-500.0,0.00044901,120]
[358698282,1745385050017,-500.0,0.00044901,120]
[358698283,1745385050029,-500.0,0.00044901,120]
[358698284,1745385050038,-500.0,0.00044901,120]
[358698285,1745385050048,-500.0,0.00044901,120]
[358698286,1745385050058,-500.0,0.00044901,120]
[358698287,1745385050067,-500.0,0.00044901,120]
[358698288,1745385050077,-500.0,0.00044901,120]
[358698289,1745385050087,-500.0,0.00044901,120]
[358698290,1745385050096,-500.0,0.00044901,120]
[358698291,1745385050105,-500.0,0.00044901,120]
[358698292,1745385050115,-500.0,0.00044901,120]
[358698293,1745385050125,-500.0,0.00044901,120]
[358698294,1745385050136,-500.0,0.00044901,120]
[358698295,1745385050145,-500.0,0.00044901,120]
[358698296,1745385050155,-500.0,0.00044901,120]
[358698297,1745385050164,-74229.65488365,0.00044901,2]
[358698298,1745385050730,654.06,0.00046582,30]
[358698299,1745385050799,654.06,0.00046582,30]
[358698300,1745385050888,654.06,0.00046582,30]
[358698301,1745385050954,654.06,0.00046582,30]
[358698302,1745385051038,654.06,0.00046582,30]
[358698303,1745385051115,654.06,0.00046582,120]
[358698304,1745385051195,654.06,0.00046582,120]
[358698305,1745385051340,654.06,0.00046582,120]
[358698307,1745385051521,654.06,0.00046582,120]
[358698308,1745385051586,654.06,0.00046582,120]
[358698309,1745385051852,654.06,0.00046582,120]
[358698310,1745385051918,654.06,0.00046582,120]
[358698311,1745385051990,654.06,0.00046582,120]
[358698312,1745385052071,654.06,0.00046582,120]
[358698313,1745385052142,654.06,0.00046582,120]
[358698314,1745385053032,654.06,0.00046582,120]
[358698315,1745385053326,654.06,0.00046582,120]
[358698316,1745385053374,500.0,0.00046582,30]
[358698317,1745385053590,654.06,0.00046582,120]
[358698318,1745385053673,500.0,0.00046582,30]
[358698319,1745385053843,654.18713187,0.00046582,120]
[358698320,1745385053891,500.0,0.00046582,30]
[358698321,1745385054323,500.0,0.00046582,30]
[358698322,1745385054479,500.0,0.00046582,30]
[358698323,1745385054530,500.0,0.00046582,30]
[358698324,1745385054591,500.0,0.00046582,30]
[358698325,1745385054641,500.0,0.00046582,30]
[358698326,1745385054686,500.0,0.00046582,30]
[358698327,1745385054732,500.0,0.00046582,30]
[358698328,1745385054789,500.0,0.00046582,30]
[358698329,1745385054841,500.0,0.00046582,30]
[358698330,1745385054895,500.0,0.00046582,30]
[358698331,1745385054949,500.0,0.00046582,30]
[358698332,1745385054998,500.0,0.00046582,30]
[358698333,1745385055052,500.0,0.00046582,30]
[358698334,1745385055107,500.0,0.00046582,30]
[358698335,1745385055203,500.0,0.00046582,30]
[358698336,1745385055296,185.03518999,0.00046582,30]
[358698337,1745385055345,500.0,0.00046582,30]
[358698338,1745385055397,472.3,0.00046582,30]
[358698339,1745385055457,500.0,0.00046582,30]
[358698340,1745385055562,500.0,0.00046582,30]
[358698341,1745385055619,613.39102787,0.00046582,30]
[358698342,1745385055770,500.0,0.00046582,30]
[358698343,1745385055836,500.0,0.00046582,30]
[358698344,1745385055959,500.0,0.00046582,30]
[358698345,1745385056017,512.50296438,0.00046582,30]
[358698346,1745385056167,1577.85,0.00046582,30]
[358698347,1745385056222,500.0,0.00046582,30]
[358698348,1745385056409,1577.85,0.00046582,30]